[Event "87th Spanish Championship 2022"]
[Site "Linares"]
[Date "2022.08.17"]
[Round "8.5"]
[White "Lianes Garcia, Marcos"]
[Black "Cuenca Jimenez, Jose Fernando"]
[Result "1/2-1/2"]
[ECO "C47"]
[WhiteElo "2411"]
[BlackElo "2552"]
[Annotator "TA"]
[PlyCount "235"]
[EventDate "2022.08.11"]
[EventType "swiss"]
[EventCountry "ESP"]
[SourceTitle "playchess.com"]
[Source "ChessBase"]
[SourceQuality "1"]
[TimeControl "5400+30"]

{[%evp 16,235,2,-4,17,4,10,12,12,9,9,6,8,9,16,9,21,4,6,-4,16,0,4,9,9,9,21,0,0,0,0,0,0,0,14,-11,-12,-41,-33,-42,-6,-66,-66,-66,-66,-66,-66,-97,-95,-102,-101,-110,-107,-141,-135,-162,-174,-162,-157,-307,-313,-316,-304,-309,-300,-304,0,-192,-143,-139,-66,-80,-8,-411,0,-66,0,-359,-66,-66,-66,-66,-66,-66,-65,-66,-66,-116,-66,-66,-35,-37,-37,-120,-66,-73,-73,-76,-73,-77,-81,-81,-74,-75,-66,-88,-8,-8,0,0,0,-8,-8,-8,0,-25,0,0,0,0,0,0,0,0,0,-8,-8,-8,0,0,0,0,0,0,0,0,0,0,0,0,0,0,0,0,0,0,0,0,0,0,0,0,0,0,0,0,0,0,0,0,0,0,0,0,0,0,0,0,0,0,0,0,0,0,0,0,0,0,0,0,0,0,0,0,0,0,0,0,0,0,0,0,0,0,0,0,0,0,0,0,0,0,0,0,0,0,0,0,0,0,0,0,0,0,0,0,0,0,0,0,0,0]} 1. e4 {[%emt 0:00:09]} e5 {[%emt 0:00:10]} 2. Nf3 {[%emt 0:00:16]} Nc6 {[%emt 0:00:16]} 3. Nc3 {[%emt 0:00:49]} Nf6 {[%emt 0:01:13]} 4. d4 {[%emt 0:00:10]} exd4 {[%emt 0:00:07]} 5. Nxd4 {[%emt 0:00:05]} Bb4 {[%emt 0:00:52]} 6. Nxc6 {[%emt 0:00:38]} bxc6 {[%emt 0:00:06]} 7. Bd3 {[%emt 0:00:09]} d5 {[%emt 0:00:15]} 8. Bd2 {[%emt 0:05:47][%cal Bc1d2,Bd2c3,Bc3e5][%mdl 32]} O-O {[%emt 0:03:33]} 9. O-O {[%emt 0:03:16]} Bxc3 {[%emt 0:15:39] C47: Scotch Four Knights and Four Knights with 4 g3.} (9... Bd6 {is more complex.} 10. Bg5 h6 11. Bh4 Rb8) 10. Bxc3 {[%emt 0:01:30]} Nxe4 {[%emt 0:00:45] 10...dxe4 might become the main line.} 11. Bxe4 {[%emt 0:08:12]} dxe4 {[%emt 0:00:08]} 12. Qh5 {[%emt 0:01:43]} Qd5 $132 {[%emt 0:19:29][%mdl 2048] Black is not holding back} 13. Qe5 {[%emt 0:01:21]} Qxe5 {[%emt 0:17:52]} 14. Bxe5 {[%emt 0:00:50] [#]} Bg4 $146 {[%emt 0:00:59]} ({Predecessor:} 14... Re8 15. Bxc7 Bf5 16. Bf4 e3 17. Bxe3 Bxc2 18. Rfc1 Be4 19. Rc4 Bd5 20. Ra4 a6 {½-½ (51) Mastrovasilis,D (2609)-Moroni,L (2565) Bastia 2021}) 15. h3 {[%emt 0:15:38]} Bh5 {[%emt 0:00:17]} 16. g4 {[%emt 0:16:23]} Bg6 {[%emt 0:01:02]} 17. Rad1 {[%emt 0:03:42]} Rae8 {[%emt 0:09:58]} 18. Bxc7 {[%emt 0:13:42]} f5 {[%emt 0:01:52]} 19. Rd7 {[%emt 0:02:35]} fxg4 {[%emt 0:15:39]} 20. hxg4 {[%emt 0:00:59]} Re6 {[%emt 0:01:02]} 21. Rfd1 {[%emt 0:09:37]} e3 {[%emt 0:04:00]} 22. fxe3 {[%emt 0:06:40]} Bxc2 {[%emt 0:00:04]} 23. R1d2 {[%emt 0:01:14]} Bb1 {[%emt 0:02:20]} 24. Bd6 {[%emt 0:04:36]} Rfe8 {[%emt 0:02:35]} 25. Bc5 {[%emt 0:01:28]} Bxa2 {[%emt 0:01:33]} 26. R2d6 {[%emt 0:01:00]} Rxd6 {[%emt 0:01:03]} 27. Rxd6 $15 {[%emt 0:00:06][%mdl 4096] Endgame KRB-KRB} Bd5 {[%emt 0:00:23]} 28. Bxa7 {[%emt 0:00:52]} (28. Kh2 $11) 28... Re4 $1 {[%emt 0:00:21]} 29. Rd8+ {[%emt 0:00:10]} Kf7 {[%emt 0:00:03]} 30. Rd7+ {[%emt 0:00:18]} Kg6 {[%emt 0:00:12]} 31. Bd4 {[%emt 0:00:52]} Rxg4+ {[%emt 0:00:03]} 32. Kf1 {[%emt 0:00:43]} Kh6 {[%emt 0:00:07]} 33. b4 {[%emt 0:00:10]} g5 {[%emt 0:00:51]} 34. Bc5 {[%emt 0:00:55]} Be4 {[%emt 0:00:47]} 35. Rd6+ {[%emt 0:00:35]} Kh5 {[%emt 0:00:17]} 36. Bd4 {[%emt 0:00:35]} Rh4 {[%emt 0:00:35]} 37. Bg7 {[%emt 0:00:20]} (37. Re6 $17) 37... Rh1+ $19 {[%emt 0:00:16]} 38. Kf2 {[%emt 0:00:04]} Kg4 {[%emt 0:00:21]} 39. Re6 {[%emt 0:00:05]} Rh2+ {[%emt 0:01:09]} 40. Kg1 {[%emt 0:00:02]} Rh1+ {[%emt 0:00:03]} 41. Kf2 {[%emt 0:00:02]} Bf3 {[%emt 0:01:46]} (41... Bd3 $19 42. e4 Rh3 43. Rxc6 h5) 42. e4 $17 {[%emt 0:01:29] [#]} h5 {[%emt 0:00:25]} (42... Rb1 $1 $17 43. Bh6 Rxb4) 43. Bf6 $15 {[%emt 0:00:53]} Rh2+ {[%emt 0:00:40]} (43... h4 $17 {White must now prevent ...h3.} 44. Re5 h3 45. Rxg5+ Kf4) 44. Kf1 $2 {[%emt 0:00:08][%mdl 8192]} (44. Ke3 $11) 44... Rh1+ $2 {[%emt 0:00:36]} (44... h4 $19 45. Rxc6 h3) 45. Kf2 {[%emt 0:00:04]} Rh2+ $2 {[%emt 0:00:30][%mdl 8192]} (45... h4 $15 46. Re5 h3 47. Rxg5+ Kf4) 46. Kf1 $19 {[%emt 0:00:04]} Rg2 $2 {[%emt 0:00:16]} (46... h4 $19 47. Rxc6 h3) 47. Re5 $15 {[%emt 0:00:43]} Kf4 {[%emt 0:00:26] Strongly threatening ...g4.} 48. Rf5+ {[%emt 0:00:57]} Kxe4 {[%emt 0:00:16]} 49. Rxg5 {[%emt 0:00:06]} Ra2 {[%emt 0:01:07]} 50. Rc5 {[%emt 0:01:36]} Kf4 {[%emt 0:00:02]} 51. Kg1 {[%emt 0:00:46]} (51. Ra5 $15 Rc2 52. Rc5 Rxc5 53. bxc5) 51... Rg2+ {[%emt 0:00:23]} ({Black should play} 51... Bd5 $17 52. b5 Ra5) 52. Kf1 {[%emt 0:00:08]} Rg6 {[%emt 0:00:21]} 53. Bh4 {[%emt 0:00:47]} Re6 {[%emt 0:01:06]} 54. Kf2 {[%emt 0:00:37]} (54. Bd8 $15) 54... Kg4 {[%emt 0:00:17]} (54... Re2+ $17 55. Kf1 Rb2) 55. Bd8 {[%emt 0:00:27]} Re2+ {[%emt 0:00:20]} 56. Kf1 {[%emt 0:00:06][%cal Oc5c6]} Rb2 {[%emt 0:01:02]} 57. Rc4+ {[%emt 0:00:31]} Kf5 {[%emt 0:00:06]} 58. Kg1 {[%emt 0:00:42]} Rg2+ {[%emt 0:00:07]} 59. Kf1 {[%emt 0:00:04]} Rd2 {[%emt 0:01:09]} 60. Rc5+ {[%emt 0:00:12]} Ke4 {[%emt 0:00:38]} (60... Ke6 $17 61. Rc3 Be4) 61. Bh4 $11 {[%emt 0:00:44]} Rd1+ {[%emt 0:00:36]} 62. Kf2 {[%emt 0:00:05]} Rd2+ {[%emt 0:00:06]} 63. Kf1 {[%emt 0:00:05]} Rb2 {[%emt 0:00:53]} 64. Rxc6 {[%emt 0:01:09]} Rxb4 {[%emt 0:00:02]} 65. Be7 {[%emt 0:00:36]} Rb1+ {[%emt 0:00:26]} 66. Kf2 {[%emt 0:00:05] The position is equal.} Rb2+ {[%emt 0:00:03]} 67. Kg3 {[%emt 0:01:07]} Rg2+ {[%emt 0:00:05]} 68. Kh3 {[%emt 0:00:05]} Rg7 {[%emt 0:00:26]} 69. Bd8 {[%emt 0:00:53]} Rd7 {[%emt 0:01:12]} 70. Bf6 {[%emt 0:00:24]} Kf5 {[%emt 0:00:25]} 71. Rb6 {[%emt 0:00:04]} Rd3 {[%emt 0:00:09]} 72. Be7 {[%emt 0:00:40]} Rd7 {[%emt 0:01:21]} 73. Rb5+ {[%emt 0:00:33]} Ke6 {[%emt 0:00:40]} 74. Bg5 {[%emt 0:00:17]} Rd3 {[%emt 0:00:12] [#] ( -> ...Bc6+)} 75. Ra5 {[%emt 0:01:16]} Bd5+ {[%emt 0:00:16]} 76. Kh4 {[%emt 0:00:47]} Bf3 {[%emt 0:00:38]} 77. Ra6+ {[%emt 0:00:25]} Kd5 {[%emt 0:00:11]} 78. Ra5+ {[%emt 0:00:17]} Kc4 {[%emt 0:00:03]} 79. Ra4+ {[%emt 0:00:28]} Kb5 {[%emt 0:00:12]} 80. Rf4 {[%emt 0:00:36]} Bg4 {[%emt 0:00:03][%csl Gg4][%cal Rd3h3]} 81. Bf6 {[%emt 0:00:06]} Kc6 {[%emt 0:00:08]} 82. Kg5 {[%emt 0:00:57]} Kd5 {[%emt 0:00:15]} 83. Rb4 {[%emt 0:00:19]} Rd1 {[%emt 0:00:14]} 84. Ra4 {[%emt 0:00:45]} Be2 {[%emt 0:00:28]} 85. Kh4 {[%emt 0:00:23]} Rh1+ {[%emt 0:00:13]} 86. Kg3 {[%emt 0:00:11]} Bg4 {[%emt 0:00:07]} 87. Bd8 {[%emt 0:00:40]} Rh3+ {[%emt 0:00:23]} 88. Kg2 {[%emt 0:00:03]} Rd3 {[%emt 0:00:06]} 89. Bg5 {[%emt 0:00:40]} Bf3+ {[%emt 0:00:07]} 90. Kf2 {[%emt 0:00:53]} Ke5 {[%emt 0:00:13]} 91. Be3 {[%emt 0:00:40]} Bd5 {[%emt 0:01:01]} 92. Rh4 {[%emt 0:00:14]} Bf7 {[%emt 0:00:08]} 93. Rb4 {[%emt 0:00:53]} Ra3 {[%emt 0:00:12]} 94. Bg5 {[%emt 0:00:28]} Rd3 {[%emt 0:00:52]} 95. Ra4 {[%emt 0:00:23]} Bd5 {[%emt 0:00:26]} 96. Be3 {[%emt 0:00:27]} Rb3 {[%emt 0:00:16]} 97. Rh4 {[%emt 0:00:33]} Bf7 {[%emt 0:00:04]} 98. Ra4 {[%emt 0:00:08]} Be6 {[%emt 0:00:38]} 99. Bg5 {[%emt 0:00:58]} Kf5 {[%emt 0:00:07]} 100. Be3 {[%emt 0:00:05]} Bd5 {[%emt 0:00:25]} (100... h4 $5) 101. Rf4+ {[%emt 0:00:06]} Kg6 {[%emt 0:00:34]} 102. Rd4 {[%emt 0:00:14]} Be6 {[%emt 0:00:21]} 103. Ra4 {[%emt 0:00:14]} Rb2+ {[%emt 0:00:32]} 104. Kg3 {[%emt 0:00:14]} Re2 {[%emt 0:00:13]} 105. Bf4 {[%emt 0:01:02]} Bd5 {[%emt 0:00:06]} 106. Ra5 {[%emt 0:01:01]} Bf7 {[%emt 0:01:05]} 107. Ra6+ {[%emt 0:00:24]} Kf5 {[%emt 0:00:34]} 108. Ra5+ {[%emt 0:00:03]} Kf6 {[%emt 0:00:04]} 109. Bg5+ {[%emt 0:00:10]} Kg6 {[%emt 0:00:11]} 110. Bf4 {[%emt 0:00:48]} Re1 {[%emt 0:00:07]} 111. Ra6+ {[%emt 0:01:05]} Kf5 {[%emt 0:00:05]} 112. Ra5+ {[%emt 0:00:04]} Kf6 {[%emt 0:00:12]} 113. Bg5+ {[%emt 0:00:37]} Kg6 {[%emt 0:00:03] ...Rg1+ is the strong threat.} 114. Bd8 {[%emt 0:00:33]} Rg1+ {[%emt 0:01:05]} 115. Kh2 {[%emt 0:00:09]} Rd1 {[%emt 0:01:03]} 116. Ra6+ {[%emt 0:00:09]} Kg7 {[%emt 0:00:29]} 117. Bf6+ {[%emt 0:00:12]} Kh7 {[%emt 0:00:07]} 118. Bg5 {Weighted Error Value: White=0.28 (precise) /Black=0.43} 1/2-1/2

[Event "87th Spanish Championship 2022"]
[Site "Linares"]
[Date "2022.08.17"]
[Round "8.6"]
[White "Tejedor Fuente, Enrique"]
[Black "Garriga Cazorla, Pere"]
[Result "0-1"]
[ECO "B60"]
[WhiteElo "2419"]
[BlackElo "2505"]
[Annotator "TA"]
[PlyCount "132"]
[EventDate "2022.08.11"]
[EventType "swiss"]
[EventCountry "ESP"]
[SourceTitle "playchess.com"]
[Source "ChessBase"]
[SourceQuality "1"]
[TimeControl "5400+30"]

{[%evp 13,132,41,43,23,9,0,0,0,0,0,0,0,7,0,9,0,5,7,9,-12,4,-14,0,-20,-12,-16,0,-8,0,0,15,8,24,27,30,43,108,53,63,68,83,42,35,36,41,36,29,43,36,50,37,68,116,116,116,117,124,124,113,119,119,119,165,127,120,120,123,0,0,0,0,0,0,0,0,0,0,0,0,0,0,0,0,0,0,0,0,0,0,0,0,0,0,0,0,0,0,0,0,0,-8,-252,-252,-252,-252,-29978,-252,-29979,-29979,-29980,-29978,-29978,-29979,-29979,-29980,-29982,-29983,-29983,-29984,-29984,-29984]} 1. e4 {[%emt 0:04:07]} c5 {[%emt 0:00:05]} 2. Nf3 {[%emt 0:00:14]} Nc6 {[%emt 0:00:06]} 3. d4 {[%emt 0:00:07]} cxd4 {[%emt 0:00:05]} 4. Nxd4 {[%emt 0:00:06]} Nf6 {[%emt 0:00:04]} 5. Nc3 {[%emt 0:00:04]} d6 {[%emt 0:00:04]} 6. Bg5 {[%emt 0:00:39]} Bd7 {[%emt 0:00:15]} 7. Nb3 {[%emt 0:01:07]} a6 {[%emt 0:02:15]} 8. Qd2 {[%emt 0:04:52] B60: Sicilian: Richter-Rauzer: Unusual Black 6th moves and 6...Bd7 without 7 Qd2.} e6 {[%emt 0:03:07]} 9. f3 {[%emt 0:03:15]} b5 {[%emt 0:08:48]} 10. a4 {[%emt 0:03:18] The position is equal.} b4 {[%emt 0:02:34] [#]} 11. Nd1 $146 {[%emt 0:11:19]} ({Predecessor:} 11. Ne2 Be7 12. Ng3 O-O 13. a5 h6 14. Be3 d5 15. Be2 Qb8 16. O-O Bd6 17. f4 dxe4 {0-1 (39) Kislov,M (2351)-Czarnota,P (2461) Polanica Zdroj 2005}) 11... Be7 {[%emt 0:09:26][%cal Of6e4,Bf8e7,Be7f6,Bf6e5,Be5d6,Bd6c5,Bc5d4][%mdl 32]} 12. Bxf6 {[%emt 0:03:19]} Bxf6 {[%emt 0:07:51]} 13. Qxd6 {[%emt 0:04:45]} Be5 {[%emt 0:09:29]} 14. Qc5 {[%emt 0:01:18]} Qc7 {[%emt 0:04:19]} 15. g3 {[%emt 0:01:18]} Bd6 {[%emt 0:00:35]} 16. Qe3 {[%emt 0:09:49]} Na5 {[%emt 0:06:39]} 17. Nf2 {[%emt 0:03:05]} O-O {[%emt 0:01:12]} 18. Nxa5 {[%emt 0:03:44][%cal Oe3d2]} Qxa5 {[%emt 0:00:19]} 19. Bc4 {[%emt 0:00:39]} Bc5 {[%emt 0:04:27][%mdl 1024] Black has compensation.} 20. Qe2 {[%emt 0:05:53]} Bd4 {[%emt 0:03:42] A strong pair of Bishops.} 21. Rd1 {[%emt 0:00:13]} e5 {[%emt 0:05:17]} 22. b3 {[%emt 0:01:48]} Kh8 {[%emt 0:01:22]} 23. O-O {[%emt 0:02:16]} Bc6 {[%emt 0:02:33]} 24. Kg2 {[%emt 0:06:56]} g6 {[%emt 0:00:32] [#]} (24... Qb6 $14) 25. Ng4 {[%emt 0:01:24]} ({White should play} 25. h4 $1 $16) 25... f5 {[%emt 0:08:23]} 26. exf5 {[%emt 0:00:55]} gxf5 {[%emt 0:00:06] [#]} 27. Rxd4 {[%emt 0:01:33]} exd4 {[%emt 0:00:02]} 28. Qe5+ {[%emt 0:06:12]} Qxe5 {[%emt 0:00:17]} 29. Nxe5 {[%emt 0:00:02]} Bb7 {[%emt 0:00:30]} 30. Rd1 {[%emt 0:03:05]} Kg7 {[%emt 0:00:55]} 31. Nd7 {[%emt 0:04:47]} Rfd8 {[%emt 0:04:45]} 32. Nc5 {[%emt 0:00:04]} Bd5 {[%emt 0:00:23]} (32... Bc8 $1 $14 {should be considered.}) 33. Bxd5 $16 {[%emt 0:10:09][%mdl 64] Remove Defender} Rxd5 {[%emt 0:00:17][%mdl 4096] Endgame KRR-KRN} 34. Ne6+ {[%emt 0:00:01]} Kf6 {[%emt 0:00:28]} 35. Nc7 {[%emt 0:00:01]} Rad8 {[%emt 0:00:01]} 36. Nxd5+ {[%emt 0:00:04]} Rxd5 {[%emt 0:00:05] KR-KR} 37. f4 {[%emt 0:04:09]} a5 {[%emt 0:00:52]} (37... Ke6 $16 {was necessary.} 38. Kf1 Rd8) 38. Kh3 {[%emt 0:01:23]} Ke6 {[%emt 0:01:12]} 39. Kh4 {[%emt 0:01:23]} Rc5 {[%emt 0:01:32]} 40. Rxd4 {[%emt 0:00:03]} (40. Re1+ $16 Kf6 41. Re2) 40... Rxc2 $11 {[%emt 0:00:05]} 41. h3 {[%emt 0:00:28]} Rc3 {[%emt 0:00:42]} 42. Rd8 {[%emt 0:00:02]} Rxb3 {[%emt 0:00:03]} 43. Ra8 {[%emt 0:00:13]} Kd5 $1 {[%emt 0:01:08]} 44. Rxa5+ {[%emt 0:00:10]} Kc4 {[%emt 0:00:01]} 45. Rxf5 {[%emt 0:00:42]} Ra3 {[%emt 0:00:01]} 46. Rf7 {[%emt 0:00:48]} b3 {[%emt 0:01:01] Hoping for ...b2.} 47. Rc7+ {[%emt 0:01:24]} Kd3 {[%emt 0:00:01] aiming for ...b2.} 48. Rd7+ {[%emt 0:00:42]} Kc3 {[%emt 0:00:38]} (48... Kc2 $5 {[%cal Rb3b2]} 49. Rc7+ Kb2 $11) 49. Rc7+ {[%emt 0:00:02]} Kd3 {[%emt 0:00:40] And now ...b2 would win.} 50. Rxh7 {[%emt 0:01:00] Strongly threatening g4.} b2 {[%emt 0:00:32]} 51. Rb7 {[%emt 0:00:01]} Kc3 {[%emt 0:00:01]} 52. Rc7+ {[%emt 0:00:23]} Kd3 {[%emt 0:00:07]} 53. Rb7 {[%emt 0:00:04]} Kc2 {[%emt 0:00:22] White must now prevent ...Rb3.} 54. Rxb2+ {[%emt 0:00:11]} Kxb2 {[%emt 0:00:01] KR-KP} 55. f5 {[%emt 0:00:45] Threatens to win with Kg4.} Kc3 {[%emt 0:00:49]} (55... Rxa4+ $2 56. Kg5 Ra3 57. Kf4 $18) 56. g4 {[%emt 0:01:33]} Kd4 {[%emt 0:00:01] ( -> ...Ke5)} 57. g5 $2 {[%emt 0:00:34] This costs White the game.} (57. Kg5 $1 $11 {and White has nothing to worry.}) 57... Ke5 $19 {[%emt 0:00:01]} 58. f6 {[%emt 0:00:19]} Ke6 {[%emt 0:00:24]} ({And not} 58... Rxa4+ 59. Kh5 $11) 59. Kh5 $2 {[%emt 0:00:41]} (59. Kg4 $19) 59... Kf7 $2 {[%emt 0:00:07]} (59... Rxh3+ {mates} 60. Kg6 Rd3 61. Kh6 Rd7 62. Kh5 Kf5 63. Kh6 Ke6 64. f7 Kxf7 65. Kh5 Ra7 66. Kg4 Rxa4+ 67. Kf5 Ra5+ 68. Kf4 Rd5 69. Kg4 Re5 70. Kf4 Re7 71. Kf5 Kg7 72. Kg4 Kg6 73. Kf4 Re8 74. Kg4 Rf8 75. Kh4 Rf4+ 76. Kh3 Kxg5 77. Kg3 Rf8 78. Kh3 Kf4 79. Kg2 Kg4 80. Kh1 Kh3 81. Kg1 Kg3 82. Kh1 Rf1#) 60. a5 $2 (60. Kg4 $19) 60... Rxh3+ {[%emt 0:01:13] KR-K3P. Black mates.} 61. Kg4 {[%emt 0:00:32]} Rh1 {[%emt 0:00:12]} 62. Kf5 {[%emt 0:00:16]} Rf1+ {[%emt 0:00:05]} 63. Ke5 {[%emt 0:00:04]} Ra1 {[%emt 0:00:09]} 64. g6+ {[%emt 0:01:20]} Kxg6 {[%emt 0:00:06]} 65. Ke6 {[%emt 0:00:02]} Rxa5 {[%emt 0:00:09]} 66. f7 {[%emt 0:00:11]} Ra6+ {[%emt 0:00:14] Weighted Error Value: White=0.46/Black=0.21 (precise)} 0-1

[Event "87th Spanish Championship 2022"]
[Site "Linares"]
[Date "2022.08.17"]
[Round "8.7"]
[White "Lopez Martinez, Josep Manuel"]
[Black "Carbonell Sancho, Marc"]
[Result "0-1"]
[ECO "E73"]
[WhiteElo "2486"]
[BlackElo "2284"]
[Annotator "TA"]
[PlyCount "74"]
[EventDate "2022.08.11"]
[EventType "swiss"]
[EventCountry "ESP"]
[SourceTitle "playchess.com"]
[Source "ChessBase"]
[SourceQuality "1"]
[TimeControl "5400+30"]

{[%evp 11,74,33,60,56,52,42,72,35,35,33,47,41,52,44,93,43,74,50,43,57,60,42,69,16,12,-3,0,-104,-97,-103,-103,-110,-96,-110,-114,-108,-81,-184,-110,-311,-322,-995,-989,-981,-981,-916,-902,-9156,-4072,-2472,-2468,-1716,-1623,-29982,-29983,-29979,-7176,-6626,-6580,-6511,-6410,-6323,-5489,-1934,-1837]} 1. c4 {[%emt 0:00:07]} Nf6 {[%emt 0:07:19]} 2. Nc3 {[%emt 0:02:02]} g6 {[%emt 0:00:02]} 3. e4 {[%emt 0:01:03]} d6 {[%emt 0:00:23]} 4. d4 {[%emt 0:00:31]} Bg7 {[%emt 0:00:06]} 5. Be2 {[%emt 0:00:36]} O-O {[%emt 0:00:09]} 6. h4 {[%emt 0:01:23]} e5 {[%emt 0:04:20]} 7. d5 {[%emt 0:00:32] E73: King's Indian: Averbakh Variation without 6...c5.} h5 {[%emt 0:00:11] Against g4} 8. Bg5 {[%emt 0:05:41]} a5 {[%emt 0:02:00]} 9. Nf3 {[%emt 0:00:34] White is better.} Na6 {[%emt 0:00:17]} 10. Nd2 {[%emt 0:00:49]} Bd7 {[%emt 0:03:00] [#]} 11. f3 $146 {[%emt 0:06:20]} ({Predecessor:} 11. g4 Bxg4 12. Bxg4 hxg4 13. Bxf6 Qxf6 14. Qxg4 Nb4 15. Ke2 Nc2 16. Rag1 Nd4+ 17. Kf1 Bh6 {0-1 (46) Naumkin,I (2390)-Melnikov,A (2335) Moscow 1986}) 11... c6 {[%emt 0:02:45]} 12. Be3 {[%emt 0:02:09]} Qe8 {[%emt 0:10:22]} (12... Nc5 $14) 13. b3 {[%emt 0:07:52]} (13. g4 $16) 13... Nh7 {[%emt 0:01:20]} 14. Na4 {[%emt 0:03:49]} f5 {[%emt 0:16:24]} 15. Nb6 {[%emt 0:01:23]} Rd8 {[%emt 0:00:01]} 16. Nxd7 {[%emt 0:10:46]} Rxd7 {[%emt 0:00:03]} 17. Bd3 {[%emt 0:02:21]} (17. a3 $14) 17... Nf6 {[%emt 0:02:08]} 18. a3 {[%emt 0:02:20] Prevents Nb4.} ({Much worse is} 18. exf5 Nb4 19. Ne4 gxf5 20. Nxf6+ Rxf6 $17) 18... Nc5 {[%emt 0:04:43]} 19. Bc2 {[%emt 0:04:55]} (19. Qc2 $11) 19... cxd5 $1 $17 {[%emt 0:00:54] Hoping for ...d4. Black is more active.} 20. cxd5 {[%emt 0:00:31]} fxe4 {[%emt 0:00:27]} 21. Nxe4 {[%emt 0:01:56]} Ncxe4 {[%emt 0:00:12]} 22. Bxe4 {[%emt 0:00:05]} Nxe4 {[%emt 0:00:05]} 23. fxe4 {[%emt 0:00:04]} Rc7 {[%emt 0:01:22]} 24. a4 {[%emt 0:07:01]} (24. Rc1 $17 {was necessary.} Rxc1 25. Qxc1) 24... Rc3 {[%emt 0:02:01]} ({Black should try} 24... Qc8 $1 $19 {aiming for ...Rc2.} 25. Bd2 Rc3 $1) 25. Kd2 {[%emt 0:13:25] Now White is beyond hope.} (25. Bf2 $17) 25... Qc8 $19 {[%emt 0:02:09][%cal Og7h6]} 26. Rh3 $2 {[%emt 0:12:13] [#]} ({Don't blunder} 26. Rc1 $2 {[#]} Rf2+ $3 {[%mdl 512]} 27. Ke1 Rxg2 $19) (26. Rf1 Rxf1 27. Qxf1 Rxb3 28. Rc1 Rb2+ 29. Ke1) 26... Bh6 $1 {[%emt 0:19:15][%mdl 512]} 27. Bxh6 {[%emt 0:00:29]} Rf2+ {[%emt 0:00:02]} 28. Ke1 {[%emt 0:00:13]} Rxg2 {[%emt 0:00:04]} 29. Rh1 {[%emt 0:00:35]} Qc5 {[%emt 0:00:35]} (29... Rh3 $142 30. Rxh3 Qxh3) 30. Qd2 {[%emt 0:02:05]} Rxd2 {[%emt 0:05:49]} 31. Bxd2 {[%emt 0:00:09]} Rc2 {[%emt 0:01:17] ( -> ...Qd4)} 32. Kd1 {[%emt 0:04:25]} Rb2 {[%emt 0:00:09]} 33. Rc1 {[%emt 0:02:27]} Qd4 {[%emt 0:00:09]} (33... Qf2 $142 34. Rc8+ Kf7 35. Rc2 Rb1+ 36. Bc1 Qf3+ 37. Kd2 Qxh1 38. Rc7+ Kf6 39. Ke2 Qg2+ 40. Kd1 Qf1+ 41. Kd2 Rxb3 42. Rc3 Qf2+ 43. Kd3 Qd4+ 44. Kc2 Rxc3+ 45. Kb2 Qb4+ 46. Ka1 Rxc1+ 47. Ka2 Qd2+ 48. Kb3 Rc3#) 34. Rc8+ {[%emt 0:00:33] Black is clearly winning.} Kf7 {[%emt 0:00:48][%csl Gb2][%cal Rd4d2]} 35. Rf1+ {[%emt 0:00:28]} Ke7 {[%emt 0:00:18][%csl Gb2][%cal Rd4d2]} 36. Rc7+ {[%emt 0:00:33]} Kd8 {[%emt 0:00:07][%csl Gb2][%cal Rd4d2]} 37. Rc2 {[%emt 0:00:36]} Rb1+ {[%emt 0:00:07] Weighted Error Value: White=0.97/Black=0.44} 0-1